[Event "RUDAR VI-GM 2024"]
[Site "Pozarevac"]
[Date "2024.02.12"]
[Round "2.2"]
[White "Kotronias, Vasilios"]
[Black "Velpula Sarayu"]
[Result "1/2-1/2"]
[ECO "B96"]
[WhiteElo "2453"]
[BlackElo "2444"]
[Annotator "TA"]
[PlyCount "93"]
[EventDate "2024.02.12"]
[EventType "tourn"]
[EventCountry "SRB"]
[SourceTitle "playchess.com"]
[Source "ChessBase"]
[SourceQuality "1"]
[TimeControl "5400+30"]

{[%evp 16,93,12,10,14,18,14,22,16,13,16,0,36,33,32,38,48,25,14,21,55,53,50,47,53,51,75,72,100,86,104,67,141,102,139,127,134,134,135,145,222,63,72,86,70,13,22,20,106,4,30,41,25,0,0,-18,-13,-62,0,0,58,-77,0,0,0,0,51,0,0,0,0,0,0,0,0,0,0,0,0,-42]} 1. e4 {[%emt 0:01:57]} c5 {[%emt 0:04:28]} 2. Nf3 {[%emt 0:00:10]} d6 {[%emt 0:00:24]} 3. d4 {[%emt 0:00:05]} cxd4 {[%emt 0:00:19]} 4. Nxd4 {[%emt 0:00:04]} Nf6 {[%emt 0:00:24]} 5. Nc3 {[%emt 0:00:04]} a6 {[%emt 0:00:18]} 6. Bg5 {[%emt 0:00:06]} e6 {[%emt 0:00:27]} 7. f4 {[%emt 0:00:09]} h6 {[%emt 0:00:18]} 8. Bh4 {[%emt 0:00:05]} Qb6 {[%emt 0:00:25]} 9. a3 {[%emt 0:00:05]} Nc6 {[%emt 0:00:22]} (9... Qxb2 $2 10. Na4 $18) 10. Bf2 {[%emt 0:00:40][%cal Od4e6] Threatens to win with Nxe6!} Qc7 {[%emt 0:00:18]} (10... Qxb2 $2 11. Na4 $18) 11. Qf3 {[%emt 0:01:02]} e5 {[%emt 0:00:13]} 12. Nxc6 {[%emt 0:03:06]} bxc6 {[%emt 0:00:06]} 13. fxe5 {[%emt 0:02:31]} dxe5 {[%emt 0:00:43]} 14. Bc4 {[%emt 0:06:14]} Be7 {[%emt 0:05:17]} 15. O-O {[%emt 0:02:20]} O-O {[%emt 0:01:40]} 16. Kh1 {[%emt 0:03:54]} a5 {[%emt 0:25:36]} 17. b3 {[%emt 0:00:05]} Ba6 {[%emt 0:10:14]} 18. Bxa6 {[%emt 0:02:39]} Rxa6 {[%emt 0:00:15]} 19. Qe2 {[%emt 0:04:05]} Raa8 {[%emt 0:05:01]} 20. Na4 {[%emt 0:00:54]} Rab8 {[%emt 0:04:31] Inhibits Nb6.} 21. Nb2 {[%emt 0:03:33]} Nd7 {[%emt 0:05:07]} 22. Nc4 {[%emt 0:08:54]} Bc5 {[%emt 0:03:06]} 23. Be1 {[%emt 0:06:38]} (23. Bh4 {feels hotter.} Rfe8 24. Qg4 Re6 25. Rad1) 23... Ra8 {[%emt 0:04:49]} (23... a4 $1 $14) 24. Rd1 {[%emt 0:03:08] Strongly threatening Bxa5.} a4 {[%emt 0:06:45] [#]} 25. Ba5 $1 {[%emt 0:01:21][%mdl 512]} Qc8 {[%emt 0:04:01]} 26. b4 {[%emt 0:07:42] White is much more active.} (26. bxa4 Be7 $16) 26... Be7 {[%emt 0:00:18]} 27. Rd3 {[%emt 0:01:11]} Ra7 {[%emt 0:02:40]} (27... Kh8 $16 {was necessary.} 28. Rfd1 Nf6) 28. Rfd1 $2 {[%emt 0:03:25]} (28. Ne3 $1 $18) 28... Nf6 $14 {[%emt 0:02:34]} 29. Nxe5 {[%emt 0:01:37]} Qe6 {[%emt 0:01:35]} 30. Bb6 {[%emt 0:01:14]} (30. Nf3 $1 $14) 30... Rb7 $1 $11 {[%emt 0:03:36]} 31. Bd4 {[%emt 0:00:16]} Rd8 {[%emt 0:00:10] [#]} (31... Rb5 $6 32. Nf3 $16) (31... Re8 $11 {keeps the balance.}) 32. Ba1 {[%emt 0:03:37]} ({White should play} 32. Nf3 $1 $16) 32... Rxd3 {[%emt 0:01:19]} 33. cxd3 {[%emt 0:00:09][%cal Bc2d3,Bd3d4,Bd4d5][%mdl 32]} c5 {[%emt 0:00:08]} 34. bxc5 {[%emt 0:10:56]} Bxc5 {[%emt 0:00:05]} 35. Nc4 {[%emt 0:05:24]} Rb3 {[%emt 0:04:26]} 36. Rf1 {[%emt 0:03:46]} (36. Bxf6 $11 Qxf6 37. e5) 36... Ng4 {[%emt 0:02:13]} (36... Bxa3 $15 37. Nd2 Rb8) 37. d4 $1 {[%emt 0:00:31]} (37. h3 $2 Nf2+ 38. Rxf2 Bxf2 39. Qxf2 Rb1+ (39... Rxd3 40. Qb2 $17) 40. Kh2 Rxa1 $19) 37... Bxa3 {[%emt 0:00:21]} ({Better is} 37... Ba7 $1 $11) 38. Nxa3 {[%emt 0:01:04] [#]} (38. d5 $1 $14 {stays ahead.} Qg6 39. h3) 38... Rxa3 {[%emt 0:00:04]} (38... Ne3 $1 $17 {[%cal Re3f1]} 39. d5 Qxe4) 39. d5 {[%emt 0:04:57]} Qxe4 {[%emt 0:00:12]} 40. Qb2 {[%emt 0:00:09][%csl Ga1][%cal Rb2g7] Chess con chili.} (40. Qxe4 $2 {is the wrong capture.} Nf2+ 41. Kg1 Nxe4 $17) 40... Rxa1 {[%emt 0:00:46]} (40... f6 $1 $11 41. Qxa3 Ne3) 41. Rxa1 {[%emt 0:01:03][%mdl 4096] Endgame. KQR-KQN} (41. Qxa1 $14 Ne3 42. Rf3 Nxd5 43. Qf1) 41... Qf4 $1 {[%emt 0:02:29][%csl Gg4][%cal Rf4h2] The position is equal.} ({But not} 41... Qxd5 42. Qb8+ (42. Rxa4 $2 Qd1#) 42... Kh7 43. Qf4 $14) 42. g3 {[%emt 0:02:07]} Qe4+ {[%emt 0:00:04]} 43. Qg2 {[%emt 0:01:46]} Qd4 {[%emt 0:00:32]} 44. Qa2 {[%emt 0:01:27]} Qe4+ {[%emt 0:00:43]} 45. Qg2 {[%emt 0:01:34]} Qd4 {[%emt 0:00:16]} 46. Qa2 {[%emt 0:00:29]} Qe4+ {[%emt 0:00:09]} 47. Qg2 {[%emt 0:00:04] Weighted Error Value: White=0.23 (precise) /Black=0.17 (very precise) .  Mistake:       	White=6     	Black=7      Inaccurate:     	White=1     	Black=3      OK:         	White=19    	Black=9      Best:        	White=2     	Black=3      Strong:       	White=1     	Black=2} 1/2-1/2

[Event "RUDAR VI-GM 2024"]
[Site "Pozarevac"]
[Date "2024.02.12"]
[Round "2.3"]
[White "Garifullina, Leya"]
[Black "Sutormin, Danila"]
[Result "0-1"]
[ECO "B36"]
[WhiteElo "2422"]
[BlackElo "2353"]
[Annotator "TA"]
[PlyCount "140"]
[EventDate "2024.02.12"]
[EventType "tourn"]
[EventCountry "SRB"]
[SourceTitle "playchess.com"]
[Source "ChessBase"]
[SourceQuality "1"]
[TimeControl "5400+30"]

{[%evp 60,140,70,37,30,30,40,41,61,46,75,72,76,42,38,0,0,0,37,57,34,55,57,52,70,0,0,0,0,0,23,0,10,0,0,0,0,0,8,0,9,-4,-6,-11,-12,-15,-13,-107,-107,-215,-210,-212,-204,-284,-267,-300,-294,-309,-316,-329,-322,-344,-348,-375,-337,-485,-483,-437,-437,-690,-685,-686,-679,-654,-649,-995,-1020,-876,-775,-1300,-1295,-29966,-29961]} 1. e4 {[%emt 0:00:03]} c5 {[%emt 0:01:18]} 2. Nf3 {[%emt 0:00:04]} g6 {[%emt 0:00:58]} 3. d4 {[%emt 0:00:15]} cxd4 {[%emt 0:00:14]} 4. Nxd4 {[%emt 0:00:11]} Nc6 {[%emt 0:00:30]} 5. c4 {[%emt 0:00:24]} Nf6 {[%emt 0:00:19]} 6. Nc3 {[%emt 0:00:20]} d6 {[%emt 0:00:18]} 7. Be2 {[%emt 0:00:24]} Nxd4 {[%emt 0:00:17]} 8. Qxd4 {[%emt 0:00:06]} Bg7 {[%emt 0:00:13]} 9. Be3 {[%emt 0:00:40]} O-O {[%emt 0:00:07]} 10. Qd2 {[%emt 0:00:05]} a5 {[%emt 0:00:12] is the new trend. B36: Sicilian: Maroczy Bind: Gurgenidze System.} 11. f3 {[%emt 0:00:21]} a4 {[%emt 0:01:24]} 12. Kf2 {[%emt 0:00:23]} Be6 {[%emt 0:03:15]} 13. Rac1 {[%emt 0:00:24]} h5 {[%emt 0:03:23]} 14. Rhd1 {[%emt 0:02:18]} Nd7 $146 {[%emt 0:02:32]} ({Predecessor:} 14... h4 15. Rc2 h3 16. g4 Qb8 17. Nd5 Bxd5 18. cxd5 e6 19. g5 Nh5 20. f4 e5 {1-0 Schmid,R (2325)-Boehme,M (2114) Bayern-ch 92th 2021 (2)}) 15. Kf1 {[%emt 0:11:08]} Qa5 {[%emt 0:11:59]} 16. Nd5 {[%emt 0:05:07]} Bxd5 {[%emt 0:00:28]} 17. Qxa5 {[%emt 0:01:01]} Rxa5 {[%emt 0:00:09]} 18. cxd5 {[%emt 0:00:04]} Nc5 {[%emt 0:03:08]} 19. Rd2 {[%emt 1:16:42]} Rb8 {[%emt 0:12:48]} 20. g3 {[%emt 0:00:00]} Kh7 {[%emt 0:07:27]} 21. Rdc2 {[%emt 0:00:00]} b6 {[%emt 0:07:18]} 22. Rd1 {[%emt 0:00:00]} Ra7 {[%emt 0:06:06]} 23. Bb5 {[%emt 0:00:00]} Ra5 {[%emt 0:00:16]} 24. Bc6 {[%emt 0:00:00]} Bf6 {[%emt 0:11:43]} 25. h4 {[%emt 0:00:00]} Be5 {[%emt 0:05:54]} 26. Kf2 {[%emt 0:00:00]} f5 {[%emt 0:01:44]} 27. exf5 {[%emt 0:00:00]} gxf5 {[%emt 0:00:03]} 28. Bg5 {[%emt 0:00:00]} Rg8 {[%emt 0:04:45]} 29. Re2 {[%emt 0:00:00]} Ra7 {[%emt 0:04:01]} 30. Kg2 {[%emt 0:00:00]} Kg7 {[%emt 0:00:05]} 31. Rc2 {[%emt 0:00:00]} Kf7 {[%emt 0:04:38]} 32. Bb5 {[%emt 0:00:00]} Ra5 {[%emt 0:01:50]} 33. Be2 {[%emt 0:00:00]} Rh8 {[%emt 0:00:28]} 34. Rb1 {[%emt 0:00:00]} Bf6 {[%emt 0:00:53]} 35. Bd2 {[%emt 0:00:00]} Ra7 {[%emt 0:00:07]} 36. Rc4 {[%emt 0:00:00]} Rc8 {[%emt 0:01:24]} 37. Bd1 {[%emt 0:00:00]} Rac7 {[%emt 0:01:56]} 38. Be3 {[%emt 0:00:00]} (38. Bxa4 $2 Nxa4 39. Rxa4 Rc2 $19) 38... Nd3 {[%emt 0:02:24]} 39. Rxc7 {[%emt 0:00:00]} (39. Rxa4 Nxb2 40. Ra3 (40. Bxb6 $2 Rc2+ 41. Bxc2 Rxc2+ 42. Kh3 Nxa4 $19) 40... b5 $17) 39... Rxc7 {[%emt 0:00:01]} 40. Bxb6 {[%emt 0:02:18]} Rb7 {[%emt 0:00:05]} 41. Be3 {[%emt 0:00:34]} f4 {[%emt 0:00:22]} (41... Rxb2+ 42. Rxb2 Nxb2 43. Bc2 $16) 42. gxf4 {[%emt 0:01:06]} (42. Bxf4 a3 43. Bd2 Rxb2 44. Rxb2 axb2 $16) (42. Bd2 $1 $14) 42... a3 $11 {[%emt 0:01:02]} 43. Bc2 {[%emt 0:04:13]} Nxb2 {[%emt 0:01:18]} 44. Kh3 {[%emt 0:01:05]} Rb5 {[%emt 0:00:29]} 45. Be4 {[%emt 0:00:44]} Kf8 {[%emt 0:00:49]} 46. Rc1 {[%emt 0:00:41]} Na4 {[%emt 0:00:13]} 47. Rc8+ {[%emt 0:01:13]} Kg7 {[%emt 0:00:02]} 48. Ra8 {[%emt 0:01:10]} Rb4 {[%emt 0:00:57]} 49. Ra7 {[%emt 0:01:08]} Rc4 {[%emt 0:00:55]} 50. f5 {[%emt 0:01:18]} Nc3 {[%emt 0:00:48]} 51. Rxa3 {[%emt 0:00:00]} Nxe4 {[%emt 0:00:03]} 52. fxe4 {[%emt 0:00:00]} Rxe4 {[%emt 0:00:02]} 53. Rd3 {[%emt 0:00:39]} (53. Bg5 $11) 53... Rxh4+ $17 {[%emt 0:00:08]} 54. Kg3 {[%emt 0:00:03]} (54. Kg2 $17 {was the only defense.}) 54... Ra4 $19 {[%emt 0:00:47]} 55. a3 {[%emt 0:00:18]} Be5+ {[%emt 0:00:05]} 56. Kh3 {[%emt 0:01:10]} Kf6 {[%emt 0:00:02]} 57. Bf2 {[%emt 0:00:19]} Kxf5 {[%emt 0:00:36]} 58. Bh4 {[%emt 0:00:05]} Ke4 {[%emt 0:01:22]} 59. Rb3 {[%emt 0:00:40]} Ra7 {[%emt 0:00:16]} ({Weaker is} 59... Kxd5 60. Bxe7 Bd4 61. Rb4 Rxa3+ 62. Kh4 $17) 60. Bf2 {[%emt 0:01:46]} Rc7 {[%emt 0:02:29]} 61. a4 {[%emt 0:00:00]} Kxd5 {[%emt 0:00:30]} 62. a5 {[%emt 0:00:00]} (62. Rb5+ {was called for.} Ke6 63. Kg2) 62... Rc2 $19 {[%emt 0:00:49]} 63. Bg1 {[%emt 0:00:42]} Ra2 {[%emt 0:00:29]} 64. Rb5+ {[%emt 0:00:43]} (64. Rb4 $142) 64... Kc4 $19 {[%emt 0:00:17]} 65. Rb7 {[%emt 0:00:02]} Ra3+ {[%emt 0:00:14]} 66. Kh4 {[%emt 0:00:59]} Rxa5 {[%emt 0:00:18]} 67. Bb6 {[%emt 0:00:19]} Bf6+ {[%emt 0:00:17]} 68. Kg3 {[%emt 0:00:07]} Ra3+ {[%emt 0:00:06]} 69. Kf4 {[%emt 0:00:31]} Kd5 {[%emt 0:00:07]} 70. Bg1 {[%emt 0:01:03]} Be5+ {[%emt 0:00:14]} 0-1

[Event "RUDAR VI-GM 2024"]
[Site "Pozarevac"]
[Date "2024.02.12"]
[Round "2.4"]
[White "Ahmadzada, Ahmad"]
[Black "Grover, Sahaj"]
[Result "1/2-1/2"]
[ECO "B67"]
[WhiteElo "2501"]
[BlackElo "2503"]
[Annotator "RC"]
[PlyCount "42"]
[EventDate "2024.02.12"]
[EventType "tourn"]
[EventCountry "SRB"]
[SourceTitle "playchess.com"]
[Source "ChessBase"]
[SourceQuality "1"]
[TimeControl "5400+30"]

1. e4 {[%emt 0:00:04]} c5 {[%emt 0:00:21]} 2. Nf3 {[%emt 0:00:11]} d6 {[%emt 0:00:10]} 3. d4 {[%emt 0:00:11]} cxd4 {[%emt 0:00:09]} 4. Nxd4 {[%emt 0:00:06]} Nf6 {[%emt 0:00:07]} 5. Nc3 {[%emt 0:00:06]} Nc6 {[%emt 0:00:05]} 6. Bg5 {[%emt 0:00:41]} e6 {[%emt 0:00:07]} 7. Qd2 {[%emt 0:00:13]} a6 {[%emt 0:00:05]} 8. O-O-O {[%emt 0:00:12]} Bd7 {[%emt 0:00:06]} 9. f3 {[%emt 0:00:22]} Nxd4 {[%emt 0:00:34]} 10. Qxd4 {[%emt 0:00:07]} Be7 {[%emt 0:00:11]} 11. h4 {[%emt 0:00:24]} Qc7 {[%emt 0:01:08]} 12. g4 {[%emt 0:00:34]} b5 {[%emt 0:00:48]} 13. Be3 {[%emt 0:00:47]} O-O {[%emt 0:01:14]} 14. g5 {[%emt 0:01:12]} Nh5 {[%emt 0:01:06]} 15. Bh3 {[%emt 0:00:50]} b4 {[%emt 0:02:29]} 16. Qxb4 {[%emt 0:01:57]} Rab8 {[%emt 0:00:31]} 17. Qd4 {[%emt 0:00:53]} Rfc8 {[%emt 0:01:14]} 18. Bg4 {[%emt 0:01:36]} Nf6 {[%emt 0:01:02]} 19. Bh3 {[%emt 0:06:12]} Nh5 {[%emt 0:02:38]} 20. Bg4 {[%emt 0:02:34]} Nf6 {[%emt 0:00:29]} 21. Bh3 {[%emt 0:01:34]} Nh5 {[%emt 0:00:35]} 1/2-1/2

[Event "RUDAR VI-GM 2024"]
[Site "Pozarevac"]
[Date "2024.02.12"]
[Round "2.5"]
[White "Apaar Saxena"]
[Black "Zemlyanskii, Ivan"]
[Result "0-1"]
[ECO "E04"]
[WhiteElo "2150"]
[BlackElo "2492"]
[Annotator "TA"]
[PlyCount "48"]
[EventDate "2024.02.12"]
[EventType "tourn"]
[EventCountry "SRB"]
[SourceTitle "playchess.com"]
[Source "ChessBase"]
[SourceQuality "1"]
[TimeControl "5400+30"]

{[%evp 14,48,4,0,4,12,31,-29,-25,-33,-20,-26,-26,-79,-62,-146,-87,-82,-88,-89,0,0,0,0,0,0,0,-213,-238,-234,-227,-245,-224,-938,-938,-29998,741]} 1. d4 {[%emt 0:00:03]} Nf6 {[%emt 0:00:16]} 2. c4 {[%emt 0:00:07]} e6 {[%emt 0:00:02]} 3. Nf3 {[%emt 0:00:07]} d5 {[%emt 0:00:02]} 4. g3 {[%emt 0:00:07]} dxc4 {[%emt 0:00:04]} 5. Bg2 {[%emt 0:00:05]} a6 {[%emt 0:00:02]} 6. O-O {[%emt 0:00:08]} Nc6 {[%emt 0:00:01]} 7. a4 {[%emt 0:00:07]} Rb8 {[%emt 0:00:14]} 8. a5 {[%emt 0:00:03]} Bb4 {[%emt 0:00:15][%cal Oe8g8]} 9. Ra4 {[%emt 0:00:01]} Nd5 {[%emt 0:02:18][%cal Ob4e7]} (9... Bxa5 $2 {is the wrong capture.} 10. Ne5 Nxe5 11. dxe5 $18) 10. Ne5 {[%emt 0:20:21]} (10. e4 $14 Nf6 11. Ne5) 10... Nxe5 $11 {[%emt 0:02:25] Black has an edge.} 11. dxe5 {[%emt 0:00:07] Threatens to win with e4.} c5 {[%emt 0:03:16]} 12. Nd2 {[%emt 0:10:48]} c3 {[%emt 0:03:01]} 13. Nc4 {[%emt 0:00:51] Prevents Ne3.} (13. Ne4 $1 $11) 13... O-O $17 {[%emt 0:01:34]} 14. Qb3 {[%emt 0:09:43]} (14. Ra1 $15) 14... Bd7 {[%emt 0:01:24]} (14... b5 $142 15. axb6 cxb2 16. Bxb2 Nxb6) 15. Ra1 {[%emt 0:00:13]} Bb5 {[%emt 0:02:00]} 16. Rd1 {[%emt 0:02:08]} Qc7 {[%emt 0:04:44]} (16... Qe7 $17 17. Bf3 Bxc4 18. Qxc4 Rfd8) 17. Bxd5 $11 {[%emt 0:03:15]} exd5 {[%emt 0:04:28]} 18. Rxd5 {[%emt 0:00:56]} Qc6 {[%emt 0:05:17]} 19. e4 {[%emt 0:05:01]} Qg6 {[%emt 0:12:21]} 20. bxc3 $2 {[%emt 0:05:36]} (20. Nd6 $11 {and White stays safe.} cxb2 21. Bxb2) 20... Qxe4 $19 {[%emt 0:03:56]} 21. Ne3 {[%emt 0:00:09]} Bc6 $1 $40 {[%emt 0:02:21][%cal Ob4c3][%mdl 128] Black wants a kill.} 22. cxb4 {[%emt 0:01:57]} Rbd8 {[%emt 0:01:16][%cal Rd8d5]} 23. bxc5 $2 {[%emt 0:05:34]} (23. Qb1 Bxd5 24. Qxe4 Bxe4 25. bxc5) 23... Rxd5 {[%emt 0:01:09]} 24. Bb2 {[%emt 0:03:03] [#]} Qh1+ $3 {[%emt 0:50:04][%mdl 41472] Weighted Error Value: White=0.91/Black=0.11 (very precise) .  Loses game:     	White=1     	---        Mistake:       	White=4     	Black=2      Inaccurate:     	White=1     	---        OK:         	White=5     	Black=5      Best:        	White=2     	Black=3      Strong:       	---       	Black=1     . Loss on time!?} 0-1

[Event "RUDAR VI-GM 2024"]
[Site "Pozarevac"]
[Date "2024.02.12"]
[Round "3.1"]
[White "Zemlyanskii, Ivan"]
[Black "Krishna Teja, N."]
[Result "1-0"]
[ECO "E05"]
[WhiteElo "2492"]
[BlackElo "2349"]
[Annotator "TA"]
[PlyCount "127"]
[EventDate "2024.02.12"]
[EventType "tourn"]
[EventCountry "SRB"]
[SourceTitle "playchess.com"]
[Source "ChessBase"]
[SourceQuality "1"]
[TimeControl "5400+30"]

{[%evp 39,126,97,87,66,189,203,202,195,212,155,163,168,161,158,167,156,153,145,214,212,205,202,299,287,510,258,404,266,261,255,299,249,273,265,260,0,0,0,0,0,0,0,0,0,0,0,0,0,0,0,0,0,0,0,0,0,0,0,0,0,0,0,0,0,0,0,6422,5627,29974,29976,29976,29971,29978,29979,29983,29984,29984,29985,29985,29986,29986,29987,29988,29989,29989,29990,29997,29998,29999]} 1. d4 {[%emt 0:00:02]} Nf6 {[%emt 0:10:17]} 2. c4 {[%emt 0:00:05]} e6 {[%emt 0:00:05]} 3. Nf3 {[%emt 0:00:04]} d5 {[%emt 0:01:13]} 4. g3 {[%emt 0:00:17]} Be7 {[%emt 0:00:17]} 5. Bg2 {[%emt 0:00:05]} O-O {[%emt 0:00:05]} 6. O-O {[%emt 0:00:05]} dxc4 {[%emt 0:00:08]} 7. Qa4 {[%emt 0:00:05] E05: Open Catalan: 5 Nf3 Be7.} Qd5 {[%emt 0:00:39]} 8. Nbd2 {[%emt 0:08:42]} b5 {[%emt 0:10:15]} 9. Qc2 {[%emt 0:09:04]} Nc6 {[%emt 0:02:35]} 10. b3 {[%emt 0:04:57]} Bb7 $146 {[%emt 0:05:51]} ({Predecessor:} 10... cxb3 11. Nxb3 Bb7 12. Bg5 a5 13. e3 a4 14. Nbd2 Nb4 15. Qb1 Rfb8 16. Rc1 Na6 {½-½ Gharamian,T (2655)-Sihite,C (2285) Biel MTO op 46th 2013 (1)}) 11. Bb2 {[%emt 0:02:57]} Nb4 {[%emt 0:02:59]} 12. Qc1 {[%emt 0:04:07]} Qd8 {[%emt 0:05:16]} 13. a3 {[%emt 0:04:17]} Na6 {[%emt 0:01:18]} 14. a4 {[%emt 0:01:50]} c3 {[%emt 0:01:32]} 15. Qxc3 {[%emt 0:02:35]} b4 {[%emt 0:01:17]} 16. Qd3 {[%emt 0:03:51]} c5 {[%emt 0:02:16]} 17. Ne5 {[%emt 0:02:23]} Nd5 {[%emt 0:07:36]} 18. Rac1 {[%emt 0:02:19]} cxd4 {[%emt 0:04:06]} 19. Bxd4 {[%emt 0:01:34]} Nb8 {[%emt 0:03:22]} 20. Rfd1 {[%emt 0:04:25]} f6 {[%emt 0:02:20]} 21. Nec4 {[%emt 0:06:11]} Na6 {[%emt 0:04:59]} (21... Nc6 $1 $14) 22. Ne3 $18 {[%emt 0:11:57]} Nac7 {[%emt 0:05:15]} 23. Ndc4 {[%emt 0:01:03]} Nxe3 {[%emt 0:01:01]} 24. Nxe3 {[%emt 0:05:52]} Bxg2 {[%emt 0:01:33]} 25. Kxg2 {[%emt 0:00:16]} Nd5 {[%emt 0:03:31]} 26. Qc4 {[%emt 0:03:23]} Qd7 {[%emt 0:02:25]} 27. Nxd5 {[%emt 0:01:12]} exd5 {[%emt 0:00:13]} 28. Qa6 {[%emt 0:00:06]} Rfc8 {[%emt 0:05:13]} (28... Rfd8 $16 29. Rc6 Bf8) 29. Rxc8+ $18 {[%emt 0:02:21]} Rxc8 {[%emt 0:00:27]} 30. Qxa7 {[%emt 0:00:33]} (30. Bxa7 $2 Ra8 $19) 30... Qe6 {[%emt 0:00:11]} (30... Qxa7 {was called for.} 31. Bxa7 Kf7 32. Rxd5 Ke6) 31. Rd2 {[%emt 0:09:56]} Rc3 $2 {[%emt 0:04:03]} (31... h5 {was necessary.} 32. h4 Kh8) 32. Rb2 {[%emt 0:01:56]} h5 {[%emt 0:02:17]} (32... Kf7 $142 33. a5 (33. Bxc3 bxc3 34. Ra2 Qe4+ 35. f3 Qb1 $11) 33... g5) 33. f3 {[%emt 0:01:24]} Rc1 {[%emt 0:01:35]} 34. h4 {[%emt 0:01:28]} Bd6 {[%emt 0:03:16]} 35. Qa6 {[%emt 0:01:25]} Kf7 {[%emt 0:06:15]} 36. Qd3 {[%emt 0:00:52]} Be5 {[%emt 0:01:41]} 37. Rd2 $2 {[%emt 0:00:31]} ({White should try} 37. Ra2 $18) 37... Rh1 $1 $11 {[%emt 0:00:51]} 38. g4 {[%emt 0:04:41]} (38. Bxe5 $5 Qh3+ $8 39. Kf2 Qf1+ 40. Ke3 Qg1+ 41. Kf4 Rxh4+ 42. gxh4 Qh2+ 43. Ke3 Qg1+ 44. Kf4 Qh2+ 45. Ke3 Qg1+ 46. Kf4 $11) 38... Rh2+ {[%emt 0:00:30]} 39. Kg1 {[%emt 0:00:37]} hxg4 {[%emt 0:00:40]} 40. Bxe5 {[%emt 0:00:26]} Qxe5 {[%emt 0:00:16]} 41. Qxd5+ {[%emt 0:00:31]} Qxd5 {[%emt 0:00:10]} 42. Rxd5 {[%emt 0:00:04]} Rxe2 {[%emt 0:00:39]} 43. Rd4 {[%emt 0:00:35]} gxf3 {[%emt 0:00:14]} 44. Rxb4 {[%emt 0:00:02]} g5 {[%emt 0:00:26]} 45. a5 {[%emt 0:00:31]} gxh4 {[%emt 0:00:43]} 46. Rxh4 {[%emt 0:00:32]} Rb2 {[%emt 0:00:49]} 47. a6 {[%emt 0:00:35]} Ke6 $1 {[%emt 0:01:20]} 48. Rb4 {[%emt 0:00:57]} (48. a7 $5 Rg2+ $8 49. Kf1 $14) 48... Ra2 {[%emt 0:00:00]} 49. Ra4 {[%emt 0:00:43]} Rg2+ $1 {[%emt 0:00:00]} 50. Kf1 {[%emt 0:00:03]} Rg8 {[%emt 0:00:00]} 51. Rb4 {[%emt 0:00:34]} (51. a7 $5 Ra8 $8 52. Kf2 $16) 51... Kd5 {[%emt 0:00:29]} 52. Rb6 {[%emt 0:00:27]} Kc5 $2 {[%emt 0:00:38][%mdl 8192] [#]} (52... Rg2 $11) 53. Rb7 $1 $18 {[%emt 0:00:07]} (53. Rxf6 Ra8 $11) 53... Kd4 {[%emt 0:01:10]} 54. a7 {[%emt 0:00:32]} Ra8 {[%emt 0:00:18] [#]} 55. b4 $1 {[%emt 0:00:01]} ({Inferior is} 55. Kf2 Kc5 $11) 55... Ke3 {[%emt 0:00:09]} 56. b5 {[%emt 0:01:04]} Rh8 {[%emt 0:01:46]} 57. Re7+ {[%emt 0:00:05]} Kf4 {[%emt 0:00:00]} 58. b6 {[%emt 0:01:20]} Rh1+ {[%emt 0:00:00]} 59. Kf2 {[%emt 0:00:01]} Rh2+ {[%emt 0:00:16]} 60. Kg1 {[%emt 0:00:29]} f2+ {[%emt 0:00:33]} 61. Kxh2 {[%emt 0:00:14]} f1=Q {[%emt 0:00:15]} 62. a8=Q {[%emt 0:00:15]} ({Not} 62. a8=B Qf2+ 63. Bg2 Qxb6 $17) 62... f5 {[%emt 0:00:52]} 63. Qb8+ {[%emt 0:00:12]} Kf3 {[%emt 0:00:33]} 64. Qg3# {[%emt 0:00:06]} 1-0

[Event "RUDAR VI-GM 2024"]
[Site "Pozarevac"]
[Date "2024.02.12"]
[Round "3.2"]
[White "Grover, Sahaj"]
[Black "Apaar Saxena"]
[Result "1-0"]
[ECO "A13"]
[WhiteElo "2503"]
[BlackElo "2150"]
[Annotator "RC"]
[PlyCount "69"]
[EventDate "2024.02.12"]
[EventType "tourn"]
[EventCountry "SRB"]
[SourceTitle "playchess.com"]
[Source "ChessBase"]
[SourceQuality "1"]
[TimeControl "5400+30"]

1. Nf3 {[%emt 0:02:05]} d5 {[%emt 0:00:09]} 2. e3 {[%emt 0:00:04]} Nf6 {[%emt 0:00:13]} 3. c4 {[%emt 0:00:15]} e6 {[%emt 0:00:11]} 4. b3 {[%emt 0:00:05]} Be7 {[%emt 0:00:09]} 5. Bb2 {[%emt 0:00:11]} O-O {[%emt 0:00:07]} 6. Nc3 {[%emt 0:07:23]} c5 {[%emt 0:00:29]} 7. cxd5 {[%emt 0:00:08]} Nxd5 {[%emt 0:00:09]} 8. Qc2 {[%emt 0:01:06]} Nc6 {[%emt 0:01:42]} 9. a3 {[%emt 0:00:12]} Nxc3 {[%emt 0:03:07]} 10. dxc3 {[%emt 0:00:55]} Bf6 {[%emt 0:00:26]} 11. h4 {[%emt 0:00:34]} e5 {[%emt 0:00:51]} 12. Bd3 {[%emt 0:16:28]} h6 {[%emt 0:00:58]} 13. O-O-O {[%emt 0:00:08]} Qe7 {[%emt 0:01:18]} 14. Bh7+ {[%emt 0:06:56]} Kh8 {[%emt 0:00:50]} 15. Bf5 {[%emt 0:00:06]} c4 {[%emt 0:04:35]} 16. b4 {[%emt 1:01:54]} Bxf5 {[%emt 0:11:43]} 17. Qxf5 {[%emt 0:00:00]} Rad8 {[%emt 1:12:03]} 18. g4 {[%emt 0:01:00]} e4 {[%emt 0:00:30]} 19. Nd2 {[%emt 0:00:30]} Bxh4 {[%emt 0:00:00]} 20. Nxc4 {[%emt 0:00:30]} Rxd1+ {[%emt 0:00:00]} 21. Rxd1 {[%emt 0:00:00]} Bg5 {[%emt 0:01:30]} 22. Nd6 {[%emt 0:01:00]} Ne5 {[%emt 0:00:00]} 23. Nxe4 {[%emt 0:00:30]} Nxg4 {[%emt 0:01:00]} 24. Rd7 {[%emt 0:00:30]} h5 {[%emt 0:00:30]} 25. Rd5 {[%emt 0:00:30]} h4 {[%emt 0:00:30]} 26. Nf6 {[%emt 0:00:30]} gxf6 {[%emt 0:00:30]} 27. c4 {[%emt 0:00:00]} Rc8 {[%emt 0:00:00]} 28. c5 {[%emt 0:00:00]} Rc6 {[%emt 0:00:00]} 29. Kd2 {[%emt 0:00:00]} Re6 {[%emt 0:00:00]} 30. Kd3 {[%emt 0:00:00]} b6 {[%emt 0:00:35]} 31. Be5 {[%emt 0:00:00]} fxe5 {[%emt 0:00:00]} 32. c6 {[%emt 0:00:00]} Kg7 {[%emt 0:00:00]} 33. e4 {[%emt 0:00:00]} b5 {[%emt 0:00:00]} 34. c7 {[%emt 0:00:00]} a6 {[%emt 0:00:00]} 35. Rxe5 {[%emt 0:00:23]} 1-0